Cogmind - Beta 13 @@@ ROGUE MODE // 2024.02.26 @ 21:20:19 Player: Dosh Result: Destroyed by 1Z-YEF(R) with Subdweller Laser Performance ------------- Evolutions (0) 0 Regions Visited (2) 400 Robots Destroyed (29) 145 Value Destroyed (867) 867 Prototype IDs (3) 60 Alien Tech Used (0) 0 Bonus (0) 0 TOTAL SCORE: 1472 Bonus ------- None Cogmind --------- Core Integrity 0/250 Matter 268/300 Energy 17/100 System Corruption 0% Temperature Cool (6) Movement Treading (240) Ox1 Location -10/Subcaves Parts ------- > --- POWER (1) -------- (None) > --- PROPULSION (2) --- Light Treads > --- UTILITY (2) ------ Large Storage Unit Core Shielding > --- WEAPON (2) ------- Light EM Pulse Cannon Barrage Gun > --- INVENTORY (15) --- Improved Ion Engine Light Treads Light Treads Improved Heat Sink Huge Storage Unit Structural Scanner Backup Plating I Hacking Suite Authchip [Propulsion] Authchip [Device] Assault Rifle Grenade Launcher Mining Claw Peak State ------------ > --- POWER ------------ Improved Ion Engine > --- PROPULSION ------- Light Treads Light Treads > --- UTILITY ---------- Large Storage Unit Core Shielding > --- WEAPON ----------- Light EM Pulse Cannon Barrage Gun > --- INVENTORY -------- Improved Ion Engine Light Treads Light Treads Improved Heat Sink Huge Storage Unit Structural Scanner Backup Plating I Hacking Suite Authchip [Propulsion] Authchip [Device] Light EM Pulse Cannon Assault Rifle Grenade Launcher Mining Claw [Rating: 13] Favorites ----------- Power Improved Ion Engine Engine Improved Ion Engine Propulsion Light Treads Treads Light Treads Utility Core Shielding Device Improved Heat Sink Storage Large Storage Unit Protection Core Shielding Weapon Light EM Pulse Cannon Energy Cannon Light EM Pulse Cannon Ballistic Gun Assault Rifle Launcher Grenade Launcher Build | -11 -10 -10 ------- Run | Yrd Mat Sub Slots Evolved . | . . . Power . | . . . Propulsion . | . . . Utility . | . . . Weapon . | . . . Parts Attached 21 | 6 12 3 Power 2 | 1 1 . Engine 2 | 1 1 . Core . | . . . Reactor . | . . . Propulsion 6 | 2 4 . Treads 6 | 2 4 . Leg . | . . . Wheel . | . . . Hover . | . . . Flight . | . . . Utility 4 | 1 3 . Device 1 | . 1 . Storage 2 | 1 1 . Processor . | . . . Hackware . | . . . Protection 1 | . 1 . Artifact . | . . . Weapon 9 | 2 4 3 Energy Gun . | . . . Energy Cannon 3 | . 1 2 Ballistic Gun 5 | 2 2 1 Ballistic Cannon . | . . . Launcher 1 | . 1 . Special Weapon . | . . . Impact Weapon . | . . . Slashing Weapon . | . . . Piercing Weapon . | . . . Special Melee Weapon . | . . . Unidentified Prototypes . | . . . Parts Lost 4 | . . 4 Power 1 | . . 1 Propulsion 1 | . . 1 Utility . | . . . Weapon 2 | . . 2 Highest Loss Streak 2 | . . 2 To Critical Strikes . | . . . Average Slot Usage (%) 97 | . 96 99 Engine 13 | . 14 13 Treads 27 | . 28 27 Device 1 | . 1 . Storage 14 | . 14 14 Protection 10 | . 9 14 Energy Cannon 10 | . 9 11 Ballistic Gun 13 | . 13 11 Launcher 4 | . 4 3 Naked Turns . | . . . Heaviest Build 35 | 13 35 35 Greatest Support 40 | 40 40 40 Greatest Overweight (x) . | . . . Average Overweight (x) . | . . . Largest Inventory Capacity 15 | 8 15 15 Average Capacity 12 | 6 11 15 Most Carried 15 | 2 15 15 Average Carried 10 | 1 9 14 Final Capacity 15 | 8 15 15 Final Carried 15 | 2 15 13 Class Distribution -------------------- 100% | Mutant Dominant Class ---------------- Mutant | -10/Materials Mutant | -10/Subcaves Resources | -11 -10 -10 ----------- Run | Yrd Mat Sub Matter Collected 824 | 165 510 149 Remotely . | . . . Salvage Created 1041 | . 766 275 Parts 62 | . 50 12 Haulers Intercepted 2 | . 2 . Recyclers Shooed . | . . . Parts Field Recycled . | . . . Retrieved Matter . | . . . Parts Self-Destructed 7 | . . 7 Prevented . | . . . Kills | -11 -10 -10 ------- Run | Yrd Mat Sub Combat Hostiles Destroyed 21 | . 13 8 Guns 13 | . 11 2 Cannons 5 | . 2 3 AOE 2 | . . 2 Classes Destroyed 8 | . 6 2 Builder 1 | . 1 . Hauler 2 | . 2 . Mechanic 1 | . 1 . Operator 1 | . 1 . Watcher 3 | . 3 . Swarmer 1 | . . 1 Grunt 13 | . 13 . Subdweller 7 | . . 7 Best Kill Streak 3 | . 3 3 Combat Bots Only 3 | . 3 3 Max Kills in Single Turn 1 | . 1 1 Gunslinging . | . . . Exploded 1 | . . 1 Melee . | . . . Uniques/NPCs Destroyed . | . . . Combat | -11 -10 -10 -------- Run | Yrd Mat Sub Hostile Shots Fired 118 | . 72 46 Missed 27 | . 15 12 Damage Taken 1316 | . 745 571 Core 251 | . 152 99 Absorbed by Shields . | . . . Redirected to Shielding 30 | . 9 21 Regen/Repaired (Parts) 80 | . 80 . Core Remaining (%) 100 | 100 . . Volleys Fired 102 | . 72 30 Largest 2 | . 2 2 Hottest 86 | . 86 84 Shots Fired 201 | . 144 57 Gun 150 | . 120 30 Cannon 45 | . 23 22 Launcher 6 | . 1 5 Special . | . . . Kinetic 150 | . 120 30 Thermal . | . . . Explosive 6 | . 1 5 Electromagnetic 45 | . 23 22 Robot Hit Streak 11 | . 8 11 Robot Miss Streak 8 | . 8 1 Penetration Max . | . . . Secondary Targets . | . . . Shots Hit Robots 126 | . 81 45 Core Hits 46 | . 31 15 Critical Kills . | . . . Critical Parts Destroyed 2 | . 2 . Critical Strikes 4 | . 4 . Destroy 2 | . 2 . Corrupt 2 | . 2 . Melee Attacks . | . . . Impact . | . . . Slashing . | . . . Piercing . | . . . Sneak Attacks . | . . . Combat Hostiles . | . . . Follow-up Attacks . | . . . Damage Inflicted 2287 | . 1337 950 Guns 1167 | . 762 405 Cannons 739 | . 411 328 Explosions 371 | . 154 217 Melee . | . . . Ramming 10 | . 10 . Kinetic 1167 | . 762 405 Thermal 122 | . 122 . Explosive 249 | . 32 217 Electromagnetic 739 | . 411 328 Impact . | . . . Slashing . | . . . Piercing . | . . . Highest Corruption . | . . . Average Corruption . | . . . Corruption Purged . | . . . Corruption Blocked . | . . . Overload Shots . | . . . Overflow Damage 42 | . 42 . Projectiles 8 | . 8 . Explosions 34 | . 34 . Melee . | . . . Knockbacks . | . . . Impact . | . . . Kinetic . | . . . Secondary . | . . . Self-Inflicted Damage 47 | . 47 . Shots 1 | . 1 . Rammed 2 | . 2 . Targets Rammed 2 | . 2 . Kicked . | . . . Crushed . | . . . Highest Temperature 156 | . 156 24 Average Temperature 30 | . 36 7 Received Heat Transfer 627 | . 435 192 Siege Activations . | . . . Robots Corrupted 1 | . . 1 Combat Hostiles 1 | . . 1 Parts Fried 9 | . 7 2 Impact Corruptions . | . . . Robots Melted . | . . . Combat Hostiles . | . . . Parts Melted . | . . . Heat Transferred 150 | . 150 . Parts Sabotaged . | . . . Parts Stolen . | . . . Parts Stripped . | . . . Power Chain Reactions 2 | . 2 . Alert | -11 -10 -10 ------- Run | Yrd Mat Sub Peak Influence 274 | . 274 . Initial . | . . . Average 120 | . 124 . Maximum Alert Level 1 | . 1 . Low Security (%) 91 | 100 91 . Level 1 8 | . 8 . Level 2 . | . . . Level 3 . | . . . Level 4 . | . . . Level 5 . | . . . High Security . | . . . Max Security . | . . . Squads Dispatched 3 | . 3 . Investigation 2 | . 2 . Extermination . | . . . Reinforcement 1 | . 1 . Assault . | . . . Garrison . | . . . Intercept . | . . . Searches Triggered . | . . . Construction Impeded . | . . . Haulers Reinforced . | . . . Active Scanning Responses . | . . . Cargo Convoy Interrupts . | . . . Stealth | -11 -10 -10 --------- Run | Yrd Mat Sub Distress Signals 1 | . 1 . Communications Jammed . | . . . Distress Signals . | . . . Times Spotted 51 | . 27 24 Peak Tracking Total 4 | . 4 4 Tactical Retreats 7 | . 4 3 Traps | -11 -10 -10 ------- Run | Yrd Mat Sub Traps Triggered . | . . . Indirectly . | . . . Trap Hack Attempts . | . . . Triggered . | . . . Disarmed . | . . . Reprogrammed . | . . . Reused . | . . . Traps Extracted . | . . . Installed . | . . . Triggered . | . . . Machines | -11 -10 -10 ---------- Run | Yrd Mat Sub Machines Disabled 1 | . 1 . Max in Single Turn 1 | . 1 . Machines Repaired . | . . . Machines Dismantled . | . . . Machines Sabotaged . | . . . Overloaded Fab Kills . | . . . Hacking | -11 -10 -10 --------- Run | Yrd Mat Sub Machines Accessed 9 | . 9 . Terminals 6 | . 6 . Fabricators . | . . . Repair Stations 1 | . 1 . Recycling Units 2 | . 2 . Scanalyzers . | . . . Garrison Access . | . . . Total Hacks 25 | . 25 . Successful 16 | . 16 . Failed 8 | . 8 . Catastrophic . | . . . Database Lockouts 1 | . 1 . Manual 15 | . 15 . Terminals 20 | . 20 . Fabricators . | . . . Repair Stations 2 | . 2 . Recycling Units 3 | . 3 . Scanalyzers . | . . . Garrison Access . | . . . Terminal Hacks 9 | . 9 . Part Schematic 1 | . 1 . Robot Schematic 1 | . 1 . Robot Analysis 2 | . 2 . Prototype ID Bank 2 | . 2 . Locate Traps 1 | . 1 . Security Status 1 | . 1 . Hauler Manifests 1 | . 1 . Fabricator Hacks . | . . . Repair Station Hacks 2 | . 2 . Scan Component 1 | . 1 . Repair 1 | . 1 . Recycling Unit Hacks . | . . . Scanalyzer . | . . . Garrison Access Hacks . | . . . Unauthorized Hacks 5 | . 5 . Terminals 3 | . 3 . Botnet 2 | . 2 . Operators 1 | . 1 . Fabricators . | . . . Repair Stations . | . . . Recycling Units 2 | . 2 . Tunnel 2 | . 2 . Scanalyzers . | . . . Garrison Access . | . . . Data Cores Recovered . | . . . Used . | . . . Hacking Detections 6 | . 6 . Full Trace Events . | . . . Feedback Events . | . . . Feedback Blocked . | . . . Robot Schematics Acquired 1 | . 1 . Robots Built . | . . . Authchips . | . . . Time . | . . . Total Robot Build Rating . | . . . Part Schematics Acquired 1 | . 1 . Parts Built . | . . . Authchips . | . . . Time . | . . . Total Part Build Rating . | . . . Parts Repaired 1 | . 1 . Time 26 | . 26 . Parts Recycled . | . . . Recycled Matter . | . . . Retrieved Matter . | . . . Retrieved Components . | . . . Parts Scanalyzed . | . . . Part Schematics Acquired . | . . . Parts Damaged . | . . . Bothacking | -11 -10 -10 ------------ Run | Yrd Mat Sub Used RIF Installer . | . . . Robots Hacked . | . . . Non-combat . | . . . Combat . | . . . Robot Hacks Applied . | . . . Relay Couplers Released . | . . . Fabnet Peak Effective % . | . . . Robots Rewired . | . . . Allies Hacked . | . . . Hacks Repelled . | . . . Allies | -11 -10 -10 -------- Run | Yrd Mat Sub Total Allies . | . . . Largest Group . | . . . Highest-Rated Group . | . . . Highest-Rated Ally . | . . . Total Orders . | . . . Ally Attacks . | . . . Total Damage . | . . . Kills . | . . . Allies Corrupted . | . . . Allies Melted . | . . . Intel | -11 -10 -10 ------- Run | Yrd Mat Sub Robot Analysis Total 2 | . 2 . Derelict Logs Recovered 1 | . . 1 Drone Launches . | . . . Drone Recoveries . | . . . Exploration | -11 -10 -10 ------------- Run | Yrd Mat Sub Turns Passed 2832 | 74 2284 474 Spaces Moved 1450 | 44 1183 223 Core 6 | 6 . . Treads 1444 | 38 1183 223 Legs . | . . . Wheels . | . . . Hover . | . . . Flight . | . . . Fastest Speed 50 | 50 160 160 Average Speed 159 | 145 160 160 Slowest Speed 160 | 160 160 160 Overloaded Moves . | . . . Propulsion Burnouts . | . . . Robots Hopped . | . . . Cave-ins Triggered . | . . . Exploration Rate (%) 40 | 5 100 16 Regions Visited 2 Branch Regions 1 Pre-discovered Areas 2 | . 2 . Known Exits Taken . | . . . Unknown Exits Taken 2 | 1 1 . Scrap Searched 3 | . . 3 Spaces Dug . | . . . Terrain Destroyed 39 | . 17 22 Melee . | . . . Projectile . | . . . AOE 39 | . 17 22 Terrain Rammed . | . . . Walls Destroyed . | . . . Machines Disabled . | . . . Actions | -11 -10 -10 --------- Run | Yrd Mat Sub Total 1780 | 51 1442 287 Wait 175 | . 145 30 Move 1448 | 43 1182 223 Hop . | . . . Pick Up 19 | 2 17 . Fast Attach 9 | 6 2 1 Attach 2 | . . 2 Detach . | . . . Swap 10 | . 10 . Drop 13 | . 12 1 Fire 102 | . 72 30 Melee . | . . . Ram . | . . . Kick . | . . . Crush 2 | . 2 . Escape Stasis . | . . . Rewire . | . . . Trap . | . . . Miscellaneous . | . . . Route ------- -11/Scrapyard -10/Materials (discovered 5 exits: [*Mat x3] / [*Min] / [*Sub]) -10/Subcaves History --------- Turn | Location | Event 3 | -11/Scrapyard | Discovered new exit (range 15) 75 | -11/Scrapyard | Entered Materials 128 | -10/Materials | Discovered new exit (range 15) 304 | -10/Materials | Build established: Mutant 638 | -10/Materials | Discovered new exit (range 15) 1083 | -10/Materials | Discovered new exit (range 8) 1126 | -10/Materials | Central database locked down 1162 | -10/Materials | Core integrity fell below 50% 1554 | -10/Materials | Discovered new exit (range 3) 1766 | -10/Materials | Repaired Lgt. Treads 2351 | -10/Materials | Discovered new exit (range 6) 2359 | -10/Materials | Entered Subcaves 2369 | -10/Subcaves | Learned Materials interactive machine intel 2413 | -10/Subcaves | Shifting Twisted Machinery released Barrage Gun 2469 | -10/Subcaves | Ambushed by Subdweller buried in earth 2490 | -10/Subcaves | Disturbed a concealed Subdweller 2540 | -10/Subcaves | Disturbed a concealed Subdweller 2546 | -10/Subcaves | Core integrity fell below 20% 2714 | -10/Subcaves | Shifting Twisted Machinery released Flamer 2833 | -10/Subcaves | Destroyed by 1Z-YEF(R) with Subdweller Laser Last Messages --------------- 02540_ Acquired 14 matter. 02541_ Searching scrap... 02541_ Found Riot Gun. 02541_ Found 20 Matter. 02542_ Acquired 2 matter. 02549_ The unstable cave ceiling collapses. 02557_ U9-AHK(R) misfires. 02559_ U9-AHK(R) destroyed. 02561_ The unstable cave ceiling collapses. 02565_ Acquired 12 matter. 02638_ KV-MW9(R) destroyed. 02643_ Acquired 16 matter. Flamer falls loose from the Twisted Machinery. 02785_ Lgt. EM Pulse Cannon destroyed. 02791_ S-10 Pest destroyed. 02820_ Lgt. Treads destroyed. 02822_ Imp. Ion Engine destroyed. 02825_ XN-KM9(R) destroyed. 02830_ 1Z-YEF(R) affixes Scrap Shield Fragment to Scrap Shield. 02831_ 1Z-YEF(R) misfires. Map ----- +----------------------------------------------------+ | ??????????????# "" ### # # #####""#???# #?? | | ??????????????## "###### "# ""##### #?? | | ???????????????# "#" =*%|= #[ & ] ## #??? | | ???????????????###""#" #[&%! ## #??? | | ?????????????????#" ##|""# ####### ##?? | | ?????????????????## # #""[%"# #?????## ##? | | ??????????????????# " """"## #???#### #? | | ?????????????????#""""##""## #??# ## ### | | ?????????????????##""" #### ### #? | | ??????????????????#""# "" #### # ### ## | | ??????????????????#""" ##### ## # #####?## | | ??????????????????###? ???# ##?????## | | ?????????????????????? ??## #???#### | | ?????????????????????? "???## # ###### | | ??????????????????????""????####* ### | | ????????????????????????????## %### | | ????????????????????????##### =#?# | | ????????????????????????# # #?## ## | | ????????????????????????# #??####### ## | | ???????????????????????## # ##????????## | | ???????????????????????# # #?????????## | | ???????????????????????## ###=&#????????## ### | | ???????????????????????#" ""##%&%& ?????# ##?### | | ???????????????????????## """"%[& ?# ##??? | | ???????????????????????## """ t""### #### | | ???????????????????????# @ " ##% "#?# # | | ???????????????????????## #? #?# | | ????????????????????????#R * #?? %"""#?# | | ????????????????????????#%*!%& #??######?# # | | ????????????????????????[= ! #?????????### # | | ???????????????????????? #?????????#### | | ????????????????????????" "" #???????## ## | | ????????????????????????"##### ##??????## | | ????????????????????????#?????###???????# # | | ????????????????????????????????????????##### ## | | ????????????????????????????????????????????#####? | | ?????????????????????????????????????????????????? | | ?????????????????????????????????????????????????? | | ?????????????????????????????????????????????????? | | ?????????????????????????????????????????????????? | | ?????????????????????????????????????????????????? | | ?????????????????????????????????????????????????? | | ?????????????????????????????????????????????????? | | ?????????????????????????????????????????????????? | | ?????????????????????????????????????????????????? | | ?????????????????????????????????????????????????? | | ?????????????????????????????????????????????????? | | ?????????????????????????????????????????????????? | | ?????????????????????????????????????????????????? | | ?????????????????????????????????????????????????? | +----------------------------------------------------+ Best States ------------- Heat Dissipation 39 Energy Generation 12 Energy Capacity 265 Matter Stores 300 Matter Capacity 300 Sight Range 16 Terrain Scan Density 10 Core Shielding 20 Evasion (%) 40 Recoil Reduction 2 Authchip Count 2 Item Schematics ----------------- Huge Storage Unit | -10/Materials | Hacked Robot Schematics ------------------ M-13 Machinist | -10/Materials | Hacked Fabricated ------------ Nothing Alien Tech Used ----------------- None Achievements -------------- None Challenges ------------ None Game ------ Seed HellfireMatterMount Manual? 0 Play Time 00:14:28 Cumulative 238.5 hours Start 2024.02.26 @ 21:07:03 End 2024.02.26 @ 21:20:19 Sessions 1 Manual Loads 0 Difficulty Rogue Special Mode None Game No. 179 Rogue 179 Adventurer 0 Explorer 0 Win Type - Total 8 Types 5/0/1/1/0/0/0/1/0 Lore% 65 Gallery% 75 Achievement% 67 Wizard Run 0 Options --------- Layout 0 ASCII 0 Keyboard 1 Movement Numpad Keybinds 0 Fullscreen 2 Font 18/SmallcapsGlow Map View 76x50 Zoom Use 0% Tactical HUD 1 Map Filters NONE Filters NONE Steam 1 RUN: f4b79e9b-0166-4a57-bf07-9bd0a9f85982